bitfinex/quotes_ETHUSD_20220218
["timestamp","ask_amount","ask_price","bid_price","bid_amount"]
[1645143114627,0.87924338,2888.9,2888.8,1.48208615]
[1645143114828,0.87924338,2888.9,2888.8,1.4783845]
[1645143115024,0.87924338,2888.9,2888.8,0.00370165]
[1645143115224,1.73166,2889.0,2888.7,0.00286463]
[1645143115225,0.86582,2889.0,2888.7,0.00286463]
[1645143115427,0.86576,2889.1,2888.7,0.00286463]
[1645143115673,3.0652,2889.3,2888.7,0.86855463]
[1645143115877,3.0652,2889.3,2888.8,1.47915823]
[1645143116075,3.0652,2889.3,2888.9,1.47545658]
[1645143116276,1.8885,2889.3,2889.0,0.00370165]
[1645143116474,1.8885,2889.3,2889.0,1.47915823]
[1645143116673,3.03930001,2889.3,2889.1,1.47915823]
[1645143116874,1.15080001,2889.3,2889.1,0.00370165]
[1645143117277,1.15080001,2889.3,2889.0,1.47512552]
[1645143117474,1.15080001,2889.3,2889.1,1.47882717]
[1645143117674,1.15080001,2889.3,2889.1,0.00286449]
[1645143118378,1.15080001,2889.3,2889.1,0.00656614]
[1645143118574,1.15080001,2889.3,2889.1,0.00370165]
[1645143118575,2.01651001,2889.3,2889.1,0.00370165]
[1645143118774,2.88223001,2889.3,2889.1,0.00286875]
[1645143119825,0.86574,2889.2,2889.0,1.47514981]
[1645143120021,0.86574,2889.2,2888.7,0.00734195]
[1645143120022,0.86574,2889.2,2889.1,0.00286875]
[1645143121025,0.86574,2889.2,2888.8,1.4751783]
[1645143121026,0.86577,2889.2,2888.8,1.4751783]
[1645143121226,0.86577,2889.1,2889.0,0.00286877]
[1645143121831,1.16577,2889.1,2889.0,0.00286877]
[1645143122028,2.03468448,2889.1,2889.0,0.00286877]
[1645143122229,0.86726731,2889.0,2888.7,0.00734195]
[1645143122433,1.04016731,2889.0,2888.9,0.00286852]
[1645143122826,2.04016731,2889.0,2888.9,0.00286852]
[1645143123084,2.04016731,2889.0,2888.9,6.852e-05]
[1645143123085,2.90611731,2889.0,2888.9,6.852e-05]
[1645143123281,2.90611731,2889.0,2888.4,0.00370165]
[1645143123282,3.32211731,2889.0,2888.4,0.00370165]
[1645143123483,0.87711472,2888.7,2888.4,0.00370165]
[1645143123687,11.33599472,2888.6,2887.1,0.04999999]
[1645143123889,11.33599472,2888.6,2887.2,1.42582799]
[1645143123890,5.0,2888.2,2887.2,1.42582799]
[1645143124183,0.94239216,2887.3,2886.9,0.01148176]
[1645143124382,1.80887216,2887.3,2886.9,0.01148176]
[1645143124581,1.80887216,2887.3,2886.3,3.5]
[1645143124582,0.86642,2887.2,2886.3,3.5]
[1645143124782,0.86642,2887.2,2886.2,0.657468]
[1645143124988,0.86642,2887.2,2886.1,3.01940508]
[1645143124989,7.16912,2887.2,2886.1,3.01940508]
[1645143125191,3.18874,2887.1,2886.1,2.36193708]
[1645143125385,5.0,2886.7,2885.2,0.1731]
[1645143125586,4.86692,2886.8,2884.9,0.657468]
[1645143125587,0.93386657,2885.3,2884.9,0.657468]
[1645143125797,0.93386657,2885.3,2884.4,4.2619986]
[1645143125798,0.86707,2885.2,2884.4,3.23459609]
[1645143126008,1.46011,2885.2,2884.4,2.36296121]
[1645143126193,0.416,2885.1,2884.4,2.36296121]
[1645143126388,5.41974,2884.8,2883.9,0.657468]
[1645143126587,5.41974,2884.8,2883.6,0.657468]
[1645143126588,0.416,2884.7,2883.6,0.657468]
[1645143126827,0.416,2884.7,2883.1,1.3150986]
[1645143126828,0.1733,2884.6,2883.2,0.657468]
[1645143127034,1.955,2885.1,2883.5,0.657468]
[1645143127035,0.1733,2885.0,2883.5,0.657468]
[1645143127226,1.1283,2885.1,2884.0,0.00287264]
[1645143128025,0.86715,2885.0,2884.0,0.00287264]
[1645143128226,0.86715,2885.0,2883.7,0.01261457]
[1645143128227,0.86577944,2885.0,2883.7,0.01261457]
[1645143128629,0.2843,2885.2,2885.1,0.6206449]
[1645143131779,0.1733,2886.0,2885.1,0.6206449]
[1645143131982,1.7966,2886.1,2885.1,0.6206449]
[1645143133381,1.7966,2886.1,2885.5,0.00287491]
[1645143134182,1.7966,2886.1,2885.1,0.6206449]
[1645143134435,1.9697,2886.1,2885.7,0.00287483]
[1645143135439,1.9697,2886.1,2885.2,0.01150103]
[1645143135440,1.9697,2886.1,2885.1,0.6206449]
[1645143135839,1.9697,2886.1,2885.8,0.00287479]
[1645143136641,1.9697,2886.1,2885.1,0.6206449]
[1645143136842,1.9697,2886.1,2885.8,0.00286735]
[1645143137043,0.86683,2885.9,2885.8,0.00286735]
[1645143137249,4.91127344,2885.9,2885.8,0.00286735]
[1645143137447,5.08437344,2885.9,2885.8,0.00286735]
[1645143137645,6.08437344,2885.9,2885.8,0.00286735]
[1645143137844,6.08437344,2885.9,2885.6,0.00716521]
[1645143138078,1.1731,2885.8,2885.6,0.00716521]
[1645143138274,1.1731,2885.8,2885.7,0.00286739]
[1645143138478,4.83253328,2885.8,2885.7,0.00286739]
[1645143138676,3.83253328,2885.8,2885.7,0.00286739]
[1645143138877,4.83253328,2885.8,2885.7,0.00286739]
[1645143139078,4.83253328,2885.8,2885.6,0.00716521]
[1645143139079,1.1731,2885.8,2885.6,0.00716521]
[1645143139274,1.1731,2885.8,2885.6,0.01003264]
[1645143139275,1.0,2885.7,2885.6,0.01003264]
[1645143139476,0.1731,2885.7,2885.6,0.01003264]
[1645143139674,0.1731,2885.8,2885.6,0.01003264]
[1645143140276,0.1731,2885.8,2885.6,0.00716521]
[1645143140476,0.59284,2885.8,2885.6,0.01003316]
[1645143141083,1.00884,2885.8,2885.6,0.00013316]
[1645143141283,2.74301,2885.8,2885.6,0.00013316]
[1645143141482,2.74301,2885.8,2885.2,0.00365057]
[1645143141682,2.60139,2885.6,2885.2,0.00365057]
[1645143141931,1.1731,2885.5,2885.2,0.00365057]
[1645143142127,0.3,2885.4,2885.2,0.00365057]
[1645143142329,0.1731,2885.3,2885.2,0.00365057]
[1645143142528,1.35820904,2885.3,2885.2,0.00365057]
[1645143143129,2.22534904,2885.3,2885.2,0.00365057]
[1645143143332,3.22534904,2885.3,2885.2,0.00365057]
[1645143145986,3.05224904,2885.3,2885.2,0.00365057]
[1645143147381,3.05224904,2885.3,2885.2,0.01058413]
[1645143147382,2.18510904,2885.3,2885.2,0.01058413]
[1645143148082,2.18510904,2885.3,2884.7,0.01226541]
[1645143148083,4.0036,2885.2,2884.7,0.01226541]
[1645143148385,1.73477,2884.8,2884.7,0.01226541]
[1645143148586,3.91727,2884.8,2883.5,0.1731]
[1645143148783,6.65206,2884.8,2883.5,0.1731]
[1645143148983,5.21729,2884.8,2883.5,0.1731]
[1645143149422,0.91824558,2883.7,2883.5,0.1731]
[1645143149624,1.29213684,2883.9,2883.5,0.1731]
[1645143150425,1.46543684,2883.9,2883.5,0.1731]
[1645143150829,0.86746,2883.8,2883.5,0.1731]
[1645143151433,1.73501,2883.8,2883.5,0.1731]
[1645143151829,2.73501,2883.8,2883.5,0.1731]
[1645143152032,3.47032,2883.7,2883.5,0.1731]
[1645143152431,0.86756,2883.6,2883.5,0.1731]
[1645143152630,0.86756,2883.6,2883.5,0.17616663]
[1645143153473,0.86756,2883.6,2883.5,0.1731]
[1645143155879,0.86756,2883.6,2882.7,27.48]
[1645143156083,1.08257495,2883.9,2882.7,7.26533523]
[1645143156084,1.25597495,2883.9,2882.7,7.26533523]
[1645143156281,1.08257495,2883.9,2882.8,0.08176106]
[1645143156924,1.08257495,2883.9,2882.9,0.86733]
[1645143157321,1.08257495,2883.9,2882.9,1.24909106]
[1645143157520,0.1734,2883.8,2882.9,1.24909106]
[1645143157721,0.1734,2883.8,2883.5,0.00675551]
[1645143157921,0.1733,2884.0,2883.5,0.00675551]
[1645143158121,0.1733,2884.1,2883.5,0.00675551]
[1645143158320,0.86736,2884.0,2883.5,0.00675551]
[1645143158522,0.1733,2883.9,2883.5,0.00675551]
[1645143158725,0.08819997,2884.3,2883.5,0.00675551]
[1645143159129,1.9398,2884.8,2883.5,0.00675551]
[1645143159325,1.9398,2884.8,2883.5,20.60275551]
[1645143159326,1.7665,2884.8,2883.5,20.60275551]
[1645143159522,1.7665,2884.8,2883.5,20.68451657]
[1645143159725,1.7665,2884.8,2883.6,25.27362753]
[1645143159925,1.7665,2884.8,2883.6,0.3]
[1645143160127,2.84198199,2884.8,2883.6,0.3]
[1645143160325,2.84198199,2884.8,2883.5,0.80451657]
[1645143160586,0.8672,2884.6,2883.5,0.42275551]
[1645143160789,0.86722,2884.4,2883.5,0.42275551]
[1645143160988,0.0030661,2884.3,2883.5,0.72275551]
[1645143161793,0.1733,2884.6,2883.5,0.72275551]
[1645143161990,0.1733,2884.7,2883.5,0.72275551]
[1645143162192,0.00306621,2884.0,2883.5,0.72275551]
[1645143162692,0.00306621,2884.0,2883.5,0.716]
[1645143163090,0.90356526,2884.6,2883.5,0.716]
[1645143163290,0.00306628,2883.9,2883.5,0.716]
[1645143163992,0.00306628,2883.9,2883.6,0.00363496]
[1645143164191,0.90356526,2884.6,2883.6,0.00363496]
[1645143164625,0.90356526,2884.6,2883.5,1.38271312]
[1645143164626,0.0030663,2883.8,2883.5,1.38271312]
[1645143164823,0.0030663,2883.8,2883.6,0.00363496]
[1645143165226,0.0030663,2883.8,2883.4,0.00674436]
[1645143165227,0.1763663,2883.8,2883.4,0.00674436]
[1645143165425,0.1733,2883.8,2883.4,0.00674436]
[1645143165628,1.14298225,2883.9,2883.4,0.00674436]
[1645143165829,0.1733,2884.2,2883.4,0.00674436]
[1645143166030,0.0030663,2883.8,2883.4,0.01037932]
[1645143166432,0.0030663,2883.8,2883.5,1.38786005]
[1645143166629,0.1733,2884.2,2883.6,0.00363496]
[1645143166829,1.17939842,2884.0,2883.4,0.00674436]
[1645143167033,0.00306635,2883.7,2883.4,0.00674436]
[1645143167428,0.00306635,2883.7,2883.5,1.39013429]
[1645143167429,0.87046635,2883.7,2883.5,1.39013429]
[1645143167628,0.00306635,2883.7,2883.0,1.59330014]
[1645143167831,1.17939842,2884.0,2882.9,2.03766729]
[1645143167832,1.17939842,2884.0,2883.1,1.39376991]
[1645143168073,0.00306635,2883.7,2883.2,1.39376991]
[1645143168276,0.00306635,2883.7,2883.3,1.39013495]
[1645143168479,0.00306635,2883.7,2883.4,0.00363496]
[1645143168680,0.00306635,2883.7,2883.0,1.39376991]
[1645143168879,0.00306635,2883.7,2883.1,0.00363496]
[1645143169180,0.86741,2883.7,2883.1,0.00363496]
[1645143169380,0.00306646,2883.5,2883.1,1.39376991]
[1645143169585,1.17939842,2884.0,2883.5,0.00277682]
[1645143169586,0.1734,2883.9,2883.5,0.00277682]
[1645143170182,1.73504,2883.6,2883.5,0.00277682]
[1645143173532,0.07390901,2883.6,2883.5,0.00277682]
[1645143174530,0.24720901,2883.6,2883.5,0.00277682]
[1645143175883,3.99779884,2883.6,2883.5,0.00277682]
[1645143176283,4.99779884,2883.6,2883.5,0.00277682]
[1645143177485,4.99779884,2883.6,2883.5,0.01025538]
[1645143178086,1.24720901,2883.6,2883.5,0.01025538]
[1645143178285,4.78664158,2883.6,2883.5,0.01025538]
[1645143178487,1.24720901,2883.6,2883.5,0.01025538]
[1645143178688,1.24720901,2883.6,2883.5,0.00479719]
[1645143178889,4.84425742,2883.6,2883.5,0.00479719]
[1645143179088,1.24720901,2883.6,2883.5,0.00479719]
[1645143179327,4.64369602,2883.6,2883.5,0.00479719]
[1645143179526,1.24720901,2883.6,2883.5,0.00479719]
[1645143179728,5.0111827,2883.5,2882.5,0.01596903]
[1645143179933,0.86773,2883.3,2882.5,0.00363496]
[1645143180130,0.07390901,2883.2,2883.0,0.00308295]
[1645143180327,2.77659,2883.4,2883.0,0.00308295]
[1645143180328,1.0,2883.3,2883.0,0.00308295]
[1645143180527,0.07392077,2883.2,2883.0,0.00308295]
[1645143181132,1.13248667,2882.7,2882.6,0.04035806]
[1645143186586,1.13248667,2882.7,2881.2,0.86776]
[1645143186587,1.16786,2882.5,2881.1,3.5]
[1645143186846,1.16786,2882.5,2880.8,0.5]
[1645143186847,7.98398,2882.3,2880.8,0.5]
[1645143187041,0.74733375,2882.2,2880.7,2.9617]
[1645143187242,0.74733375,2882.2,2880.1,0.01677556]
[1645143187243,6.248,2881.9,2880.2,0.5]
[1645143187449,0.07393375,2882.1,2880.1,0.01677556]
[1645143187450,6.248,2881.6,2880.1,0.01677556]
[1645143187646,0.86837,2881.4,2880.1,0.01677556]
[1645143187838,1.73664,2881.2,2880.1,0.01677556]
[1645143188042,0.5,2881.1,2880.1,0.01677556]
[1645143188238,0.1734,2881.0,2880.1,0.01677556]
[1645143188440,0.5,2880.9,2880.1,0.01677556]
[1645143188639,0.86846,2880.4,2880.1,0.01677556]
[1645143188940,0.5,2880.7,2880.1,0.01677556]
[1645143189838,2.02892419,2880.6,2880.3,0.00308195]
[1645143190245,2.02892419,2880.6,2880.3,0.00228195]
[1645143190246,2.4104,2880.5,2880.3,0.00228195]
[1645143190441,3.4104,2880.5,2880.3,0.00228195]
[1645143190685,1.8909,2880.4,2880.1,0.01677556]
[1645143190884,1.8909,2880.4,2878.5,2.8979]
[1645143190885,4.0,2880.2,2878.5,2.8979]
[1645143191090,4.0,2880.2,2878.6,1.40794213]
[1645143191091,0.96621449,2879.3,2878.6,1.40794213]
[1645143191287,0.96621449,2879.3,2878.1,20.68]
[1645143191288,2.78042,2879.2,2878.1,0.5]
[1645143191484,0.6736,2879.2,2878.2,1.40558608]
[1645143191785,0.6736,2879.2,2878.3,1.40558608]
[1645143191786,0.6236,2879.2,2878.3,1.40558608]
[1645143191988,0.6236,2879.2,2878.4,1.40558608]
[1645143192286,0.6236,2879.2,2878.5,1.40558608]
[1645143192484,0.6236,2879.2,2878.2,20.18]
[1645143192485,0.5,2879.2,2878.2,20.18]
[1645143192791,1.2065,2879.9,2878.7,20.18]
[1645143193088,0.5,2880.0,2878.9,20.18]
[1645143193284,2.1898,2880.4,2878.9,21.34844]
[1645143193285,0.1736,2880.3,2878.9,21.34844]
[1645143193484,0.1736,2880.3,2879.2,1.18879391]
[1645143193685,0.1736,2880.3,2879.4,0.86841]
[1645143194085,0.1736,2880.3,2879.5,0.3]
[1645143194329,2.1898,2880.4,2879.5,0.3]
[1645143194527,2.1898,2880.4,2878.9,0.3]
[1645143194729,2.1898,2880.4,2879.7,0.0030822]
[1645143195129,1.16217052,2880.0,2879.7,0.0030822]
[1645143195528,1.16217052,2880.0,2878.8,0.3]
[1645143195529,0.1736,2879.9,2878.8,0.3]
[1645143195732,0.1736,2879.9,2878.5,0.3]
[1645143195733,3.82246934,2879.9,2878.5,0.3]
[1645143195934,0.1736,2879.9,2879.7,0.0030822]
[1645143196734,0.1736,2879.9,2878.6,2.60567]
[1645143197035,2.06762,2880.2,2879.7,0.00308223]
[1645143197235,1.1991,2880.2,2879.7,0.00308223]
[1645143197938,1.13515165,2880.0,2879.5,0.00731312]
[1645143198187,1.13515165,2880.0,2879.8,0.00308216]
[1645143198188,1.30875165,2880.0,2879.8,0.00308216]
[1645143198486,1.13515165,2880.0,2879.8,0.00308216]
[1645143199088,3.46304495,2879.9,2879.5,0.00731312]
[1645143199290,0.5,2879.8,2879.5,0.00731312]
[1645143199488,0.1736,2879.7,2879.5,0.00731312]
[1645143199689,0.5,2879.6,2879.5,0.00731312]
[1645143200491,0.6736,2879.6,2879.5,0.00731312]
[1645143201298,4.70102028,2879.6,2879.5,0.00731312]
[1645143201693,4.70102028,2879.6,2877.7,1.9349]
[1645143201694,0.86902,2879.1,2877.7,1.9349]
[1645143201936,5.11538292,2879.0,2877.8,0.00360516]
[1645143202337,1.02605229,2878.6,2877.8,0.00360516]
[1645143202733,1.02605229,2878.6,2877.5,0.04999999]
[1645143202935,1.02605229,2878.6,2878.1,0.00130953]
[1645143203137,1.3662,2878.8,2878.1,0.00130953]
[1645143203138,1.1926,2878.8,2878.1,0.00130953]
[1645143203335,0.1736,2878.7,2878.1,0.00130953]
[1645143203934,0.1736,2878.7,2877.7,0.00360516]
[1645143204135,1.30857626,2878.7,2877.7,0.00360516]
[1645143204736,2.17753626,2878.7,2877.7,0.00360516]
[1645143206379,1.18160998,2878.2,2877.7,0.00360516]
[1645143206577,1.18160998,2878.2,2878.1,0.0030833]
[1645143207584,1.18160998,2878.2,2877.6,0.00360516]
[1645143207779,3.69445492,2878.5,2878.0,0.00130742]
[1645143207979,0.1736,2878.6,2878.0,0.00130742]
[1645143208180,0.13222631,2878.6,2878.0,0.00130742]
[1645143208581,0.86905,2878.4,2878.0,0.00130742]
[1645143208781,0.86905,2878.4,2877.3,0.00360516]
[1645143208782,0.86905,2878.4,2877.3,0.30360516]
[1645143208983,0.1736,2878.3,2878.2,0.00130735]
[1645143209181,0.1736,2878.4,2878.2,0.00130735]
[1645143209729,1.827311,2878.3,2878.2,0.00130735]
[1645143209927,1.827311,2878.3,2877.1,0.00360516]
[1645143210326,0.2485351,2878.3,2878.2,0.00308591]
[1645143210934,1.18736094,2878.3,2878.2,0.00308591]
[1645143211128,1.18736094,2878.3,2877.1,1.7382]
[1645143211529,1.18736094,2878.3,2878.1,0.00308593]
[1645143212331,1.18736094,2878.3,2877.0,2.96530516]
[1645143212530,1.1528947,2877.7,2877.0,2.96530516]
[1645143212730,1.1528947,2877.7,2877.6,0.01234568]
[1645143213582,1.1528947,2877.7,2876.9,0.5]
[1645143213583,0.86928,2877.6,2876.9,0.5]
[1645143213780,1.04288,2877.6,2877.5,0.00308621]
[1645143214780,0.1736,2877.6,2876.6,0.0144654]
[1645143214981,1.03933534,2877.8,2877.4,0.00308625]
[1645143215180,1.7346,2878.1,2877.4,0.00308625]
[1645143215181,0.1736,2878.0,2877.4,0.00308625]
[1645143215582,1.9082,2878.1,2877.4,0.00308625]
[1645143216087,0.86915,2878.0,2877.2,0.86914]
[1645143216284,0.86915,2878.0,2877.6,0.00308616]
[1645143217128,0.86915,2878.0,2877.2,0.01234649]
[1645143217129,0.86915,2878.0,2877.2,0.86913]
[1645143217333,0.86915,2878.0,2877.7,0.00308614]
[1645143217930,1.7346,2878.1,2877.7,0.00308614]
[1645143218130,0.1736,2878.5,2877.7,0.00308614]
[1645143218330,0.41974,2879.4,2877.0,7.27779381]
[1645143218331,2.0276,2878.7,2877.0,7.27779381]
[1645143218532,1.854,2878.7,2877.1,5.89213618]
[1645143218740,1.33662545,2878.6,2877.8,0.00308609]
[1645143218936,0.1736,2878.6,2877.8,0.00308609]
[1645143219137,0.1736,2878.6,2877.8,0.87198609]
[1645143219337,0.1736,2878.6,2877.8,0.00308609]
[1645143219939,0.1736,2878.6,2878.1,0.00308596]
[1645143220137,1.31183285,2878.6,2878.1,0.00308596]
[1645143220337,2.18080285,2878.6,2878.1,0.00308596]
[1645143220788,2.18080285,2878.6,2877.5,0.3]
[1645143220988,2.18080285,2878.6,2878.2,0.00308589]
[1645143221886,3.04990285,2878.6,2877.5,0.86909]
[1645143222387,2.18093285,2878.6,2878.3,0.00308587]
[1645143223188,0.86554656,2878.1,2877.5,0.86909]
[1645143223388,0.86554656,2878.1,2877.9,0.01234522]
[1645143223688,1.73465656,2878.1,2877.9,0.01234522]
[1645143224329,1.73465656,2878.1,2877.4,0.86914]
[1645143224530,1.73465656,2878.1,2877.5,1.31874653]
[1645143224729,1.73465656,2878.1,2877.9,0.00308605]
[1645143224935,1.3936,2878.6,2877.9,0.00308605]
[1645143225530,1.3936,2878.6,2877.5,0.86904]
[1645143225735,1.3936,2878.6,2877.6,1.31885039]
[1645143225736,3.13172,2878.6,2877.6,1.31885039]
[1645143225934,1.12857466,2878.2,2878.1,0.00308593]
[1645143226137,1.30217466,2878.2,2878.1,0.00308593]
[1645143226535,2.25907466,2878.2,2878.1,0.00308593]
[1645143226740,2.25907466,2878.2,2877.0,0.00356949]
[1645143226937,1.08966164,2877.4,2877.0,0.00356949]
[1645143227736,0.86927,2877.6,2877.0,0.00356949]
[1645143227944,0.86927,2877.6,2877.1,0.86923]
[1645143228192,0.86927,2877.6,2877.2,0.00356949]
[1645143228796,0.86927,2877.6,2876.8,1.30756731]
[1645143229397,0.86927,2877.6,2877.1,0.00308411]
[1645143230092,1.04287,2877.6,2877.1,0.00308411]
[1645143230295,0.90556398,2877.4,2877.1,1.30399782]
[1645143230492,0.90556398,2877.4,2877.2,1.28209498]
[1645143230697,0.90556398,2877.4,2877.2,1.28517903]
[1645143230899,0.90556398,2877.4,2877.2,0.00665354]
[1645143231499,0.90556398,2877.4,2877.3,1.28078796]
[1645143231698,0.90556398,2877.4,2877.3,0.00356949]
[1645143232232,1.77488398,2877.4,2877.3,0.00356949]
[1645143232632,1.77488398,2877.4,2877.2,0.00308407]
[1645143232835,2.77488398,2877.4,2877.0,1.2805254]
[1645143233036,2.77488398,2877.4,2877.2,0.00308405]
[1645143233037,0.1736,2877.3,2877.2,0.00308405]
[1645143233233,2.94848398,2877.4,2877.2,0.00308405]
[1645143233734,1.04292,2877.4,2877.2,0.00308405]
[1645143233933,0.86932,2877.4,2877.0,0.00356949]
[1645143234134,0.86932,2877.4,2877.0,1.28437191]
[1645143234336,0.86932,2877.4,2877.2,0.00308407]
[1645143234537,0.86932,2877.4,2877.2,1.28745598]
[1645143234734,1.83448191,2877.4,2877.2,0.00308407]
[1645143235133,1.83448191,2877.4,2877.0,1.28466647]
[1645143235333,1.83448191,2877.4,2877.1,1.28109698]
[1645143235578,1.83448191,2877.4,2877.2,1.28418105]
[1645143235784,1.83448191,2877.4,2877.2,0.00308407]
[1645143235983,1.83448191,2877.4,2877.2,0.00665356]
[1645143236183,1.83448191,2877.4,2877.2,0.00308407]
[1645143236386,1.83448191,2877.4,2877.0,1.28478227]
[1645143236583,1.83448191,2877.4,2877.2,0.00308407]
[1645143236782,1.83448191,2877.4,2877.2,1.28405189]
[1645143236986,1.83448191,2877.4,2877.2,0.00665356]
[1645143237187,1.83448191,2877.4,2877.2,0.00308407]
[1645143237584,1.83448191,2877.4,2877.1,0.00356949]
[1645143237785,1.83448191,2877.4,2877.2,0.00308407]
[1645143238185,0.86932,2877.4,2877.2,0.00308407]
[1645143238386,0.86932,2877.4,2877.2,0.00665356]
[1645143238586,1.0,2877.5,2877.2,0.00665356]
[1645143238786,1.04287,2877.6,2877.0,0.00356949]
[1645143238787,1.1736,2877.6,2877.0,0.00356949]
[1645143238988,1.1736,2877.6,2877.1,0.00356949]
[1645143239186,1.04017296,2877.5,2877.2,0.00308407]
[1645143239635,1.04292,2877.4,2877.2,0.00308407]
[1645143239838,2.78216,2877.4,2877.2,0.00308407]
[1645143240035,1.91284,2877.4,2876.6,0.0144654]
[1645143240239,1.0,2877.3,2877.2,0.00308407]
[1645143240643,2.60889,2877.3,2877.2,0.00308407]
[1645143240840,3.60889,2877.3,2877.2,0.00308407]
[1645143241240,0.86971,2877.1,2876.6,0.0144654]
[1645143241447,0.417,2877.0,2876.6,0.0144654]
[1645143241746,0.1738,2876.9,2876.6,0.0144654]
[1645143242243,1.04353,2876.9,2876.6,0.0144654]
[1645143242642,2.04353,2876.9,2876.6,0.0144654]
[1645143244182,2.91318,2876.9,2876.6,0.0144654]
[1645143244383,0.86966,2876.8,2876.6,0.0144654]
[1645143245182,0.86966,2876.8,2876.6,0.01754745]
[1645143245582,0.88596817,2876.7,2876.6,0.01754745]
[1645143245990,2.68716817,2876.7,2876.6,0.0144654]
[1645143250334,1.10734661,2876.7,2876.6,0.0144654]
[1645143250586,2.16426181,2876.7,2876.6,0.0144654]
[1645143250993,5.96451954,2876.7,2876.6,0.0144654]
[1645143251792,2.16426181,2876.7,2876.6,0.0144654]
[1645143251990,5.46146162,2876.7,2876.6,0.0144654]
[1645143252193,5.46146162,2876.7,2876.0,0.0174511]
[1645143252194,4.0,2876.6,2876.0,0.0174511]
[1645143252400,20.82788045,2876.2,2874.8,0.0178508]
[1645143252598,20.82788045,2876.2,2873.5,0.70374699]
[1645143252599,0.64788045,2875.9,2873.5,0.70374699]
[1645143252802,0.64788045,2875.9,2873.5,0.04627899]
[1645143252803,0.3,2874.9,2873.5,0.04627899]
[1645143252997,5.41974,2874.7,2873.2,0.03945669]
[1645143253193,0.40022435,2874.6,2873.2,0.03945669]
[1645143253397,0.417,2874.5,2873.3,2.10002013]
[1645143253593,0.417,2874.5,2873.4,1.17701686]
[1645143253795,0.417,2874.5,2873.4,0.05229496]
[1645143254094,0.417,2874.8,2873.8,0.007]
[1645143254339,1.19108697,2874.9,2873.8,0.007]
[1645143254535,2.06127697,2874.9,2873.9,0.04945284]
[1645143254734,0.00183827,2874.1,2873.9,0.04945284]
[1645143255646,1.0,2874.7,2873.9,0.04945284]
[1645143255840,0.00183827,2874.1,2873.9,0.04945284]
[1645143256941,1.04869453,2874.6,2873.9,0.04945284]
[1645143257141,0.00308475,2874.1,2873.9,0.04945284]
[1645143257746,8.475e-05,2874.1,2873.9,0.04945284]
[1645143257949,2.6621,2875.2,2874.0,5.0]
[1645143257950,1.5272,2875.2,2874.0,5.0]
[1645143258195,1.5272,2875.2,2874.2,5.0]
[1645143258393,1.5272,2875.2,2874.7,5.0]
[1645143258592,1.5272,2875.2,2874.8,5.60338439]
[1645143258593,0.0001,2875.2,2874.8,5.60338439]
[1645143258792,0.0001,2875.2,2874.9,0.3]
[1645143258992,0.0001,2875.2,2875.0,20.18]
[1645143259193,0.0001,2875.2,2875.0,20.72320019]
[1645143259393,0.0001,2875.2,2875.1,0.04263176]
[1645143259595,0.00193827,2875.2,2875.1,0.04263176]
[1645143259796,0.00193827,2875.2,2875.0,20.18]
[1645143259994,0.00193827,2875.2,2875.0,20.22320019]
[1645143260196,0.00193827,2875.2,2875.1,0.04263176]
[1645143260393,0.0001,2875.2,2875.1,0.04263176]
[1645143260597,0.00193827,2875.2,2875.1,0.04263176]
[1645143260801,0.00193827,2875.2,2875.1,20.22263176]
[1645143261098,0.00193827,2875.2,2875.1,20.18]
[1645143261300,0.00193827,2875.2,2875.1,20.22263176]
[1645143261597,3.82216206,2876.6,2875.1,20.22263176]
[1645143261839,1.1739,2876.7,2875.1,0.04263176]
[1645143261840,0.00308425,2875.3,2875.1,0.04263176]
[1645143262041,0.00308425,2875.3,2875.2,0.04206334]
[1645143262261,0.00308425,2875.3,2875.1,0.04263176]
[1645143262842,3.70814835,2876.2,2875.1,0.04263176]
[1645143263040,0.00308423,2875.3,2875.1,0.04263176]
[1645143263944,0.86983,2876.1,2875.1,0.04263176]
[1645143264146,0.86983,2876.1,2875.0,0.04320019]
[1645143264344,0.00308423,2875.3,2875.0,0.04320019]
[1645143265244,0.86983,2876.1,2875.0,0.04320019]
[1645143265444,0.00308425,2875.3,2875.0,0.04320019]
[1645143266493,3.50398982,2876.0,2875.0,0.04320019]
[1645143266694,0.00308425,2875.3,2875.0,0.04320019]
[1645143267697,3.53236174,2876.0,2875.0,0.04320019]
[1645143267895,0.00308425,2875.3,2875.0,0.04666675]
[1645143268399,0.00308425,2875.3,2875.1,0.04263176]
[1645143268795,3.60379223,2876.0,2875.1,0.04263176]
[1645143268994,0.1739,2876.2,2875.2,0.86973]
[1645143268995,3.6149804,2876.2,2875.2,0.86973]
[1645143269194,3.6149804,2876.2,2875.3,0.00346656]
[1645143269436,3.6149804,2876.2,2875.3,0.04496147]
[1645143269734,3.6149804,2876.2,2875.4,0.04092649]
[1645143269735,0.87005,2875.9,2875.4,0.04092649]
[1645143269932,0.5908,2875.8,2875.4,0.04092649]
[1645143270133,0.5908,2875.8,2875.1,0.04263176]
[1645143270334,0.5908,2875.8,2874.5,0.0460423]
[1645143270534,4.0908,2875.8,2874.5,0.0460423]
[1645143270736,1.06475839,2875.0,2874.3,0.05064571]
[1645143270940,1.06475839,2875.0,2874.4,0.04661073]
[1645143271337,1.06475839,2875.0,2874.4,0.91661073]
[1645143271559,0.00308447,2874.8,2874.4,0.91661073]
[1645143271741,1.06475839,2875.0,2874.8,0.00181993]
[1645143272240,1.06475839,2875.0,2874.9,0.04376861]
[1645143272441,0.501,2875.3,2874.9,0.04376861]
[1645143274098,0.00308427,2875.2,2874.9,0.04376861]
[1645143274900,3.6,2875.2,2874.6,0.3189751]
[1645143275099,7.13000335,2875.2,2874.6,0.3189751]
[1645143275299,3.53000335,2875.2,2874.6,0.3189751]
[1645143275498,3.53000335,2875.2,2874.4,2.60979]
[1645143275906,3.53000335,2875.2,2874.5,0.86998]
[1645143275907,0.00287866,2875.2,2874.5,0.86998]
[1645143276108,0.501,2875.3,2874.5,0.86998]
[1645143276403,0.00287875,2874.9,2874.5,0.86998]
[1645143276842,0.1739,2875.4,2874.8,0.86988]
[1645143277142,0.501,2875.6,2874.8,0.86988]
[1645143277343,5.41660084,2876.0,2874.8,0.86988]
[1645143277344,4.17781084,2876.0,2874.8,0.86988]
[1645143277544,0.1739,2876.0,2874.8,0.3]
[1645143277743,1.08834937,2876.0,2874.8,1.1928245]
[1645143277943,0.86984,2875.9,2875.0,0.86978]
[1645143278142,0.86984,2875.9,2874.9,1.73956]
[1645143278342,0.86984,2875.9,2874.9,2.03956]